fUSD/lending_fUSD_20240805
["ID","MTS","AMOUNT","RATE_DAILY","PERIOD"]
[334251186,1722865849872,-151.0,0.00013759,2]
[334251187,1722865849882,-183.68876,0.00013759,2]
[334251188,1722865849891,-151.0,0.00013759,2]
[334251189,1722865849901,-183.68876,0.00013759,2]
[334251190,1722865849910,-361.024539,0.00013759,2]
[334251191,1722865849920,-361.024539,0.00013759,2]
[334251192,1722865849930,-151.0,0.00013759,2]
[334251193,1722865849939,-346.830737,0.00013759,2]
[334251194,1722865849949,-346.830737,0.00013759,2]
[334251195,1722865849959,-180.182727,0.00013759,2]
[334251196,1722865849969,-151.0,0.00013759,2]
[334251197,1722865849979,-180.182727,0.00013759,2]
[334251198,1722865849988,-776.965683,0.00013759,2]
[334251199,1722865849999,-776.965683,0.00013759,2]
[334251200,1722865850008,-255.02335,0.00013759,2]
[334251201,1722865850018,-255.02335,0.00013759,2]
[334251202,1722865850027,-913.011788,0.00013759,2]
[334251203,1722865850037,-913.011788,0.00013759,2]
[334251204,1722865850047,-1114.414612,0.00013759,2]
[334251205,1722865850056,-1114.414612,0.00013759,2]
[334251206,1722865850066,-151.0,0.00013759,2]
[334251207,1722865850075,-151.0,0.00013759,2]
[334251208,1722865850085,-151.0,0.00013759,2]
[334251209,1722865850094,-151.0,0.00013759,2]
[334251210,1722865850104,-151.059511,0.00013759,2]
[334251211,1722865850114,-321.657293,0.00013759,2]
[334251212,1722865850123,-356.730689,0.00013759,2]
[334251213,1722865850133,-321.657293,0.00013759,2]
[334251214,1722865850143,-1176.135982,0.00013759,2]
[334251215,1722865850153,-356.730689,0.00013759,2]
[334251216,1722865850163,-1176.135982,0.00013759,2]
[334251217,1722865850172,-151.0,0.00013759,2]
[334251218,1722865850181,-151.0,0.00013759,2]
[334251219,1722865850204,-151.0,0.00013759,2]
[334251220,1722865850213,-194.157693,0.00013759,2]
[334251221,1722865850223,-194.157693,0.00013759,2]
[334251222,1722865850232,-436.507019,0.00013759,2]
[334251223,1722865850246,-436.507019,0.00013759,2]
[334251224,1722865850255,-436.658784,0.00013759,2]
[334251225,1722865850264,-436.658784,0.00013759,2]
[334251226,1722865850274,-5207.706012,0.00013759,2]
[334251227,1722865850284,-5207.706012,0.00013759,2]
[334251228,1722865850294,-266.4602,0.00013759,2]
[334251229,1722865850303,-205.951661,0.00013759,2]
[334251230,1722865850314,-205.951661,0.00013759,2]
[334251231,1722865850323,-266.4602,0.00013759,2]
[334251232,1722865850333,-389.967999,0.00013759,2]
[334251233,1722865850342,-389.967999,0.00013759,2]
[334251234,1722865850352,-324.855715,0.00013759,2]
[334251235,1722865850362,-324.855715,0.00013759,2]
[334251236,1722865850371,-188.94824,0.00013759,2]
[334251237,1722865850381,-803.354816,0.00013759,2]
[334251238,1722865850390,-188.94824,0.00013759,2]
[334251239,1722865850400,-151.0,0.00013759,2]
[334251240,1722865850409,-803.354816,0.00013759,2]
[334251241,1722865850418,-151.0,0.00013759,2]
[334251242,1722865850428,-213.421721,0.00013759,2]
[334251243,1722865850437,-151.0,0.00013759,2]
[334251244,1722865850447,-213.421721,0.00013759,2]
[334251245,1722865850457,-519.636216,0.00013759,2]
[334251246,1722865850467,-519.636216,0.00013759,2]
[334251247,1722865850477,-2177.202346,0.00013759,2]
[334251248,1722865850489,-2177.202346,0.00013759,2]
[334251249,1722865850498,-337.209924,0.00013759,2]
[334251250,1722865850508,-337.209924,0.00013759,2]
[334251251,1722865850518,-151.0,0.00013759,2]
[334251252,1722865850527,-151.0,0.00013759,2]
[334251253,1722865850537,-1000.0,0.00013767,2]
[334251254,1722865850547,-1000.0,0.00013767,2]
[334251255,1722865850558,-1000.0,0.00013768,2]
[334251256,1722865850568,-1000.0,0.00013768,2]
[334251257,1722865850578,-1000.0,0.00013768,2]
[334251258,1722865850587,-1000.0,0.00013768,2]
[334251259,1722865850597,-500.0,0.00013768,2]
[334251260,1722865850607,-155.0,0.00013789,2]
[334251261,1722865850616,-155.0,0.00013789,2]
[334251262,1722865850626,-155.0,0.00013789,2]
[334251263,1722865850636,-155.0,0.00013789,2]
[334251264,1722865850646,-155.0,0.00013789,2]
[334251265,1722865850655,-803.354816,0.000138,2]
[334251266,1722865850665,-151.0,0.000138,2]
[334251267,1722865850674,-803.354816,0.000138,2]
[334251268,1722865850683,-151.0,0.000138,2]
[334251269,1722865850694,-213.421721,0.000138,2]
[334251270,1722865850703,-151.0,0.000138,2]
[334251271,1722865850713,-213.421721,0.000138,2]
[334251272,1722865850722,-519.636216,0.000138,2]
[334251273,1722865850733,-519.636216,0.000138,2]
[334251274,1722865850743,-2177.202346,0.000138,2]
[334251275,1722865850753,-2177.202346,0.000138,2]
[334251276,1722865850763,-151.0,0.000138,2]
[334251277,1722865850772,-225.75664,0.000138,2]
[334251278,1722865850783,-225.75664,0.000138,2]
[334251279,1722865850793,-238.375547,0.000138,2]
[334251280,1722865850803,-309027.934809,0.000138,3]
[334251281,1722865850813,-238.375547,0.000138,2]
[334251282,1722865850822,-151.0,0.000138,2]
[334251283,1722865850832,-151.0,0.000138,2]
[334251284,1722865850841,-337.209924,0.000138,2]
[334251285,1722865850851,-792.252162,0.000138,2]
[334251286,1722865850861,-337.209924,0.000138,2]
[334251287,1722865850871,-792.252162,0.000138,2]
[334251288,1722865850880,-237.57617,0.000138,2]
[334251289,1722865850891,-237.57617,0.000138,2]
[334251290,1722865850900,-151.0,0.000138,2]
[334251291,1722865850910,-464.114199,0.000138,2]
[334251292,1722865850920,-464.114199,0.000138,2]
[334251293,1722865850930,-151.0,0.000138,2]
[334251294,1722865850953,-449.490152,0.000138,2]
[334251295,1722865850963,-151.0,0.000138,2]
[334251296,1722865850973,-449.490152,0.000138,2]
[334251297,1722865850983,-151.0,0.000138,2]
[334251298,1722865850993,-151.0,0.000138,2]
[334251299,1722865851003,-264.162203,0.000138,2]
[334251300,1722865851013,-151.0,0.000138,2]
[334251301,1722865851023,-264.162203,0.000138,2]
[334251302,1722865851033,-500.0,0.0001381,2]
[334251303,1722865851042,-500.0,0.0001381,2]
[334251304,1722865851051,-500.0,0.0001381,2]
[334251305,1722865851060,-500.0,0.0001381,2]
[334251306,1722865851070,-500.0,0.0001381,2]
[334251307,1722865851079,-377.5399,0.0001381,2]
[334251308,1722865851089,-500.0,0.0001381,2]
[334251309,1722865851099,-500.0,0.0001381,2]
[334251310,1722865851108,-500.0,0.0001381,2]
[334251311,1722865851117,-500.0,0.0001381,2]
[334251312,1722865851127,-500.0,0.0001381,2]
[334251313,1722865851136,-500.0,0.0001381,2]
[334251314,1722865851146,-500.0,0.0001381,2]
[334251315,1722865851155,-500.0,0.0001381,2]
[334251316,1722865851164,-500.0,0.0001381,2]
[334251317,1722865851174,-501.5609,0.0001381,2]
[334251318,1722865851183,-155.0,0.00013825,2]
[334251319,1722865851194,-200.0,0.00013836,2]
[334251320,1722865851203,-200.0,0.00013836,2]
[334251321,1722865851214,-200.0,0.00013836,2]
[334251322,1722865851224,-321.69137635,0.00013878,2]
[334251323,1722865851235,-151.0,0.00013879,2]
[334251324,1722865851245,-166.1,0.00013879,2]
[334251325,1722865851255,-166.1,0.00013879,2]
[334251326,1722865851265,-151.0,0.00013879,2]
[334251327,1722865851276,-151.0,0.00013879,2]
[334251328,1722865851286,-183.68876,0.00013879,2]
[334251329,1722865851296,-151.0,0.00013879,2]
[334251330,1722865851305,-183.68876,0.00013879,2]
[334251331,1722865851316,-361.024539,0.00013879,2]
[334251332,1722865851326,-361.024539,0.00013879,2]
[334251333,1722865851336,-255.02335,0.00013879,2]
[334251334,1722865851346,-255.02335,0.00013879,2]
[334251335,1722865851355,-321.657293,0.00013879,2]
[334251336,1722865851365,-321.657293,0.00013879,2]
[334251337,1722865851375,-1000.0,0.00013879,2]
[334251338,1722865851385,-1000.0,0.00013879,2]
[334251339,1722865851396,-1000.0,0.00013879,2]
[334251340,1722865851405,-1000.0,0.00013879,2]
[334251341,1722865851415,-1003.73120651,0.00013879,2]
[334251342,1722865851426,-1089.1408257,0.00013886,2]
[334251343,1722865851446,-475.5167408,0.00013886,2]
[334251344,1722865851456,-12306.765389,0.00013886,2]
[334251345,1722865851466,-1065.5817909,0.00013886,2]
[334251346,1722865851476,-351.791643,0.00013889,2]
[334251347,1722865851488,-151.0,0.00013889,2]
[334251348,1722865851498,-151.0,0.00013889,2]
[334251349,1722865851507,-351.791643,0.00013889,2]
[334251350,1722865851517,-190.128033,0.00013889,2]
[334251351,1722865851526,-253.072338,0.00013889,2]
[334251352,1722865851535,-190.128033,0.00013889,2]
[334251353,1722865851545,-151.0,0.00013889,2]
[334251354,1722865851554,-151.0,0.00013889,2]
[334251355,1722865851564,-151.0,0.00013889,2]
[334251356,1722865851574,-151.0,0.00013889,2]
[334251357,1722865851583,-355.692265,0.00013889,2]
[334251358,1722865851592,-355.692265,0.00013889,2]
[334251359,1722865851602,-151.0,0.00013889,2]
[334251360,1722865851611,-151.0,0.00013889,2]
[334251361,1722865851621,-10527.99021344,0.00013889,2]
[334251362,1722865851631,-300.0,0.00013899,2]
[334251363,1722865851640,-151.0,0.000139,2]
[334251364,1722865851650,-151.0,0.000139,2]
[334251365,1722865851660,-151.0,0.000139,2]
[334251366,1722865851671,-370.049159,0.000139,2]
[334251367,1722865851681,-370.049159,0.000139,2]
[334251368,1722865851692,-287.024109,0.000139,2]
[334251369,1722865851701,-210.301423,0.000139,2]
[334251370,1722865851712,-151.0,0.000139,2]
[334251371,1722865851722,-210.301423,0.000139,2]
[334251372,1722865851733,-389.18587,0.000139,2]
[334251373,1722865851744,-389.18587,0.000139,2]
[334251374,1722865851754,-151.0,0.000139,2]
[334251375,1722865851764,-227.013634,0.000139,2]
[334251376,1722865851774,-227.013634,0.000139,2]
[334251377,1722865851783,-151.0,0.000139,2]
[334251378,1722865851793,-151.0,0.000139,2]
[334251379,1722865851802,-151.0,0.000139,2]
[334251380,1722865851812,-151.0,0.000139,2]
[334251381,1722865851822,-151.0,0.000139,2]
[334251382,1722865851831,-1448.25438,0.000139,2]
[334251383,1722865851841,-1448.25438,0.000139,2]
[334251384,1722865851851,-1380.128151,0.000139,2]
[334251385,1722865851860,-1380.128151,0.000139,2]
[334251386,1722865851871,-151.0,0.000139,2]
[334251387,1722865851880,-151.0,0.000139,2]
[334251388,1722865851890,-151.0,0.000139,2]
[334251389,1722865851900,-226.027349,0.000139,2]
[334251390,1722865851909,-151.0,0.000139,2]
[334251391,1722865851919,-463.693507,0.000139,2]
[334251392,1722865851928,-151.0,0.000139,2]
[334251393,1722865851952,-226.027349,0.000139,2]
[334251394,1722865851961,-301.755469,0.000139,2]
[334251395,1722865851971,-463.693507,0.000139,2]
[334251396,1722865851981,-151.0,0.000139,2]
[334251397,1722865851991,-151.0,0.000139,2]
[334251398,1722865852001,-169.554,0.000139,2]
[334251399,1722865852010,-151.0,0.000139,2]
[334251400,1722865852019,-169.554,0.000139,2]
[334251401,1722865852029,-351.791643,0.000139,2]
[334251402,1722865852039,-151.0,0.000139,2]
[334251403,1722865852049,-351.791643,0.000139,2]
[334251404,1722865852059,-190.128033,0.000139,2]
[334251405,1722865852069,-190.128033,0.000139,2]
[334251406,1722865852078,-151.0,0.000139,2]
[334251407,1722865852088,-151.0,0.000139,2]
[334251408,1722865852098,-151.0,0.000139,2]
[334251409,1722865852107,-151.0,0.000139,2]
[334251410,1722865852117,-151.0,0.000139,2]
[334251411,1722865852126,-166.1,0.000139,2]
[334251412,1722865852136,-166.1,0.000139,2]
[334251413,1722865852146,-355.692265,0.000139,2]
[334251414,1722865852156,-355.692265,0.000139,2]
[334251415,1722865852165,-151.0,0.000139,2]
[334251416,1722865852174,-151.0,0.000139,2]
[334251417,1722865852191,-151.0,0.000139,2]
[334251418,1722865852201,-151.0,0.000139,2]
[334251419,1722865852211,-278.937907,0.000139,2]
[334251420,1722865852220,-183.68876,0.000139,2]
[334251421,1722865852229,-151.0,0.000139,2]
[334251422,1722865852239,-361.024539,0.000139,2]
[334251423,1722865852248,-361.024539,0.000139,2]
[334251424,1722865852258,-183.68876,0.000139,2]
[334251425,1722865852268,-346.830737,0.000139,2]
[334251426,1722865852277,-346.830737,0.000139,2]
[334251427,1722865852286,-180.182727,0.000139,2]
[334251428,1722865852296,-151.0,0.000139,2]
[334251429,1722865852306,-180.182727,0.000139,2]
[334251430,1722865852316,-776.965683,0.000139,2]
[334251431,1722865852326,-776.965683,0.000139,2]
[334251432,1722865852336,-255.02335,0.000139,2]
[334251433,1722865852345,-255.02335,0.000139,2]
[334251434,1722865852354,-913.011788,0.000139,2]
[334251435,1722865852364,-913.011788,0.000139,2]
[334251436,1722865852374,-1114.414612,0.000139,2]
[334251437,1722865852384,-1114.414612,0.000139,2]
[334251438,1722865852395,-151.0,0.000139,2]
[334251439,1722865852405,-151.0,0.000139,2]
[334251440,1722865852414,-151.0,0.000139,2]
[334251441,1722865852425,-151.0,0.000139,2]
[334251442,1722865852441,-321.657293,0.000139,2]
[334251443,1722865852451,-356.730689,0.000139,2]
[334251444,1722865852460,-1176.135982,0.000139,2]
[334251445,1722865852471,-321.657293,0.000139,2]
[334251446,1722865852480,-356.730689,0.000139,2]
[334251447,1722865852491,-1176.135982,0.000139,2]
[334251448,1722865852500,-151.0,0.000139,2]
[334251449,1722865852510,-151.0,0.000139,2]
[334251450,1722865852519,-151.0,0.000139,2]
[334251451,1722865852528,-194.157693,0.000139,2]
[334251452,1722865852539,-194.157693,0.000139,2]
[334251453,1722865852550,-436.507019,0.000139,2]
[334251454,1722865852560,-436.507019,0.000139,2]
[334251455,1722865852572,-436.658784,0.000139,2]
[334251456,1722865852581,-436.658784,0.000139,2]
[334251457,1722865852592,-5207.706012,0.000139,2]
[334251458,1722865852602,-256.55305638,0.000139,2]
[334251459,1722865852612,-5207.706012,0.000139,2]
[334251460,1722865852622,-266.4602,0.000139,2]
[334251461,1722865852632,-205.951661,0.000139,2]
[334251462,1722865852642,-205.951661,0.000139,2]
[334251463,1722865852651,-266.4602,0.000139,2]
[334251464,1722865852661,-389.967999,0.000139,2]
[334251465,1722865852671,-389.967999,0.000139,2]
[334251466,1722865852680,-324.855715,0.000139,2]
[334251467,1722865852698,-324.855715,0.000139,2]
[334251468,1722865852710,-188.94824,0.000139,2]
[334251469,1722865852720,-188.94824,0.000139,2]
[334251470,1722865852729,-803.354816,0.000139,2]
[334251471,1722865852739,-803.354816,0.000139,2]
[334251472,1722865852750,-151.0,0.000139,2]
[334251473,1722865852761,-151.0,0.000139,2]
[334251474,1722865852771,-213.421721,0.000139,2]
[334251475,1722865852781,-151.0,0.000139,2]
[334251476,1722865852791,-213.421721,0.000139,2]
[334251477,1722865852804,-519.636216,0.000139,2]
[334251478,1722865852814,-519.636216,0.000139,2]
[334251479,1722865852824,-2177.202346,0.000139,2]
[334251480,1722865852833,-2177.202346,0.000139,2]
[334251481,1722865852843,-291.49163,0.000139,2]
[334251482,1722865852853,-225.75664,0.000139,2]
[334251483,1722865852862,-225.75664,0.000139,2]
[334251484,1722865852871,-238.375547,0.000139,2]
[334251485,1722865852881,-202922.78046979,0.000139,3]
[334251535,1722866967203,-412.90303818,0.0001,2]
[334251536,1722866967225,-9587.09696182,0.0001,2]
[334251537,1722866975761,-10000.0,0.0001,2]
[334251546,1722867005079,-300.0,9.999e-05,2]
[334251547,1722867005110,-5714.79824553,0.0001,2]
[334251548,1722867005155,-150.0,0.0001,2]
[334251549,1722867005182,-181.72444059,0.0001,2]
[334251551,1722867020287,299.81326693,0.0001,2]
[334251552,1722867020645,1050.08109978,0.0001,2]
[334251574,1722867032368,-553.66,0.00010374,2]
[334251575,1722867032378,-49.27568449,0.00010999,2]
[334251576,1722867032391,-370.72431551,0.00010999,2]
[334251577,1722867032401,-28.47959935,0.00011,2]
[334251578,1722867032413,-221.52040065,0.00011,2]
[334251579,1722867032423,-150.0,0.00011104,2]
[334251580,1722867032433,-264.3297815,0.00011105,2]
[334251581,1722867032448,-270.40100644,0.00011105,2]
[334251582,1722867032459,-236.44533916,0.00011105,2]
[334251583,1722867032469,-2144.62791432,0.00011105,2]
[334251584,1722867032479,-476.65214277,0.00011105,2]
[334251585,1722867032489,-1405.19425176,0.00011105,2]
[334251586,1722867032499,-164.3003689,0.00011105,2]
[334251587,1722867032508,-1184.26383039,0.00011105,2]
[334251588,1722867032518,-2839.42461148,0.00011105,2]
[334251589,1722867032528,-5400.48698057,0.00011105,2]
[334251590,1722867032537,-1074.00301579,0.00011105,2]
[334251591,1722867032546,-2209.36735237,0.00011105,2]
[334251592,1722867032556,-489.60138364,0.00011105,2]
[334251593,1722867032565,-155.0,0.00011105,2]
[334251594,1722867032575,-155.0,0.00011206,2]
[334251595,1722867032585,-309.09396936,0.00011322,2]
[334251596,1722867032594,-921.03072838,0.00011324,2]
[334251597,1722867032603,-12636.33,0.00011705,2]
[334251598,1722867032613,-499.99,0.00011705,2]
[334251599,1722867032622,-250.0,0.00011733,2]
[334251600,1722867032631,-250.0,0.00011809,2]
[334251601,1722867032641,-474.12,0.00011825,2]
[334251602,1722867032650,-418.92266229,0.00011896,2]
[334251603,1722867032660,-418.92266229,0.00011896,2]
[334251604,1722867032669,-150.0,0.00011965,2]
[334251605,1722867032680,-5000.0,0.00012,2]
[334251607,1722867032696,-162.27,0.00012055,2]
[334251608,1722867032706,-1000.0,0.00012078,2]
[334251610,1722867032715,-587.0,0.00012099,2]
[334251612,1722867032724,-412.90303818,0.00012121,2]
[334251614,1722867032733,-150.0,0.00012148,2]
[334251616,1722867032742,-152.76,0.00012529,2]
[334251618,1722867032751,-166.44820133,0.00012538,2]
[334251620,1722867032762,-346.5263054,0.00012538,2]
[334251622,1722867032771,-118126.86141925,0.0001254,2]
[334251625,1722867032783,-484.32,0.0001254,2]
[334251626,1722867032794,-503.022718,0.0001254,2]
[334251628,1722867032813,-4684.31907008,0.0001254,2]
[334251630,1722867032825,-300.0,0.0001254,2]
[334251633,1722867032837,-267.505,0.0001254,2]
[334251635,1722867032849,-342454.39726582,0.0001254,2]
[334251639,1722867032882,-1096.62478645,0.0001254,2]
[334251641,1722867032896,-925.44486123,0.0001254,2]
[334251643,1722867032909,-587.636628,0.0001254,2]
[334251646,1722867032922,-3743.64459107,0.0001254,2]
[334251648,1722867032932,-553.66,0.00012638,2]
[334251650,1722867032958,-363.95283854,0.0001269,2]
[334251652,1722867032968,-528.60750449,0.00012696,2]
[334251654,1722867032983,-155.0,0.00013125,2]
[334251656,1722867032998,-155.0,0.00013199,2]
[334251658,1722867033009,-1176.15950994,0.00013199,2]
[334251660,1722867033020,-248.61042332,0.00013283,2]
[334251662,1722867033030,-2054.62168965,0.00013303,2]
[334251664,1722867033041,-823.0,0.00013309,2]
[334251666,1722867033052,-598.67,0.000135,2]
[334251668,1722867033064,-834.66,0.00013507,2]
[334251670,1722867033075,-653.24000473,0.0001351,2]
[334251672,1722867033086,-653.24000473,0.0001351,2]
[334251675,1722867033099,-531.93797373,0.00013579,2]
[334251677,1722867033110,-22583.02380175,0.00013579,2]
[334251730,1722867033655,162.63203017,0.0001,2]
[334251841,1722867034854,299.81326693,0.0001,2]
[334252193,1722867038408,-164.9628186,0.00012121,2]
[334252195,1722867038419,-243.10335405,0.00013066,2]
[334252197,1722867038429,-56.63797795,0.00013579,2]
[334252199,1722867038440,-601.7558494,0.00013587,2]
[334252202,1722867038462,-265.70578,0.00013587,2]
[334252204,1722867038474,-132.5383706,0.00013587,2]
[334252206,1722867038485,-2321.26896294,0.0001367,2]
[334252209,1722867038497,-251.94138828,0.0001367,2]
[334252211,1722867038509,-506.80326954,0.0001367,2]
[334252213,1722867038522,-12393.53993989,0.0001367,2]
[334252215,1722867038532,-4456.41720984,0.0001367,2]
[334252218,1722867038548,-554.26539974,0.0001367,2]
[334252220,1722867038559,-347.11103298,0.0001367,2]
[334252581,1722867042848,-2054.62168965,0.00013297,2]
[334252583,1722867042858,-292.95989248,0.0001367,2]
[334252587,1722867042871,-1621.54872998,0.0001367,2]
[334252589,1722867042880,-2416.0501,0.00013673,2]
[334252591,1722867042890,-394.66956028,0.00013698,2]
[334252594,1722867042903,-3024.61252761,0.00013698,2]
[334252596,1722867042952,-1054.93613778,0.00013698,2]
[334252597,1722867042962,-174.19,0.00013699,2]
[334252599,1722867042971,-199.49441272,0.00013699,2]
[334252620,1722867043226,-0.50558728,0.00013699,2]
[334252621,1722867043236,-500.0,0.00013699,2]
[334252622,1722867043246,-500.0,0.00013699,2]
[334252623,1722867043255,-500.0,0.00013699,2]
[334252624,1722867043264,-500.0,0.00013699,2]
[334252625,1722867043274,-96.98877855,0.00013699,2]
[334252627,1722867043298,-65.90798163,0.00013699,2]
[334252628,1722867043307,-5847.33603609,0.00013699,2]
[334252629,1722867043317,-9236.70671197,0.00013699,2]
[334252630,1722867043393,-1291.28350147,0.00013699,2]
[334252632,1722867043403,-155.0,0.00013699,2]
[334252634,1722867043413,-3253.71649851,0.000137,2]
[334252636,1722867043423,-760.21,0.000137,2]
[334252639,1722867043435,-476.61860149,0.000137,2]
[334252641,1722867043449,-1223.98139851,0.000137,2]
[334252645,1722867043495,-1068.80017037,0.000137,2]
[334252647,1722867043507,-1597.47858,0.000137,2]
[334252709,1722867044894,-623.25,0.000137,2]
[334252711,1722867044906,-4714.48985112,0.000137,2]
[334252713,1722867044915,-250.23523546,0.0001372,2]
[334252715,1722867044926,-187.6,0.00013729,2]
[334252717,1722867044935,-153.93183386,0.00013759,2]
[334252719,1722867044945,-4850.71750224,0.00013779,2]
[334252722,1722867044962,-1637.0841609,0.00013779,2]
[334252724,1722867044974,-547.46957672,0.00013779,2]
[334252726,1722867044986,-464.72876014,0.00013779,2]
[334252728,1722867044995,-184.62182622,0.00013779,2]
[334252730,1722867045005,-177.83991103,0.00013788,2]
[334252732,1722867045021,-535.56259609,0.00013788,2]
[334252733,1722867045034,-286.59749288,0.00013788,2]
[334252734,1722867045044,-140.55250512,0.00013789,2]
[334252735,1722867045055,-859.44749488,0.00013789,2]
[334252736,1722867045065,-500.0,0.00013789,2]
[334252737,1722867045074,-143.36829786,0.00013789,2]
[334252754,1722867048037,-921.03072838,0.00011322,2]
[334252755,1722867048048,-359.17322688,0.0001372,2]
[334252756,1722867048059,-224.27575307,0.00013789,2]
[334252757,1722867048070,-338.29801455,0.00013799,2]
[334252758,1722867048080,-500.0,0.00013799,2]
[334252759,1722867048090,-373.43391688,0.00013799,2]
[334252760,1722867048100,-3080.259936,0.00013799,2]
[334252761,1722867048111,-203.74316133,0.00013799,2]
[334252762,1722867048122,-151.0,0.000138,2]
[334252763,1722867048132,-151.0,0.000138,2]
[334252764,1722867048142,-1727.73526291,0.000138,2]
[334252765,1722867048154,-815.48483709,0.000138,2]
[334252766,1722867048164,-9833.71516291,0.000138,2]
[334252767,1722867048273,-1069.19252002,0.000138,2]
[334252768,1722867048284,-3237.27711707,0.000138,2]
[334252769,1722867048294,-402.44288293,0.000138,2]
[334252770,1722867048306,-5316.3,0.000138,2]
[334252771,1722867048318,-91253.49145966,0.000138,2]
[334252772,1722867048329,-524.39,0.000138,2]
[334252773,1722867048342,-147503.37565741,0.000138,2]
[334252774,1722867048352,-4082.6662,0.000138,2]
[334252775,1722867048363,-333.8,0.000138,2]
[334252776,1722867048373,-888.1533,0.000138,2]
[334252777,1722867048383,-151.81259882,0.000138,2]
[334252778,1722867048392,-278019.944657,0.000138,3]
[334252779,1722867048402,-834.66,0.0001382,2]
[334252780,1722867048413,-834.66,0.0001382,2]
[334252781,1722867048423,-420.67,0.0001382,2]
[334252782,1722867048433,-420.67,0.0001382,2]
[334252783,1722867048442,-164.28139414,0.00013825,2]
[334252784,1722867048458,-210.93263361,0.00013825,2]
[334252785,1722867048468,-155.0,0.00013825,2]
[334252786,1722867048478,-184.72785089,0.00013859,2]
[334252787,1722867048487,-484.89111714,0.00013859,2]
[334252789,1722867048497,-200.0,0.00013873,2]
[334252791,1722867048506,-200.0,0.00013873,2]
[334252793,1722867048516,-161.01134479,0.00013873,2]
[334252795,1722867048525,-887.7911,0.00013879,2]
[334252797,1722867048535,-100000.0,0.00013879,2]
[334252799,1722867048545,-1000.0,0.00013879,2]
[334252801,1722867048555,-200.0,0.00013889,2]
[334252803,1722867048564,-1138.37465577,0.00013889,2]
[334252805,1722867048574,-202.77094298,0.00013889,2]
[334252807,1722867048585,-205.81331723,0.00013889,2]
[334252809,1722867048595,-155.0,0.00013889,2]
[334252811,1722867048604,-155.59290137,0.00013889,2]
[334252813,1722867048614,-600.38361179,0.00013889,2]
[334252815,1722867048623,-493.31131863,0.00013896,2]
[334252817,1722867048634,-500.0,0.00013898,2]
[334252819,1722867048643,-199.053759,0.00013898,2]
[334252821,1722867048653,-500.0,0.00013898,2]
[334252823,1722867048663,-500.0,0.00013898,2]
[334252826,1722867048672,-500.0,0.00013898,2]
[334252827,1722867048682,-352.97494818,0.00013898,2]
[334252830,1722867048691,-739.0,0.00013899,2]
[334252831,1722867048704,-211.2897781,0.00013899,2]
[334252833,1722867048714,-150.01,0.00013899,2]
[334252835,1722867048723,-310.18758073,0.00013899,2]
[334252838,1722867048733,-2173.9852255,0.00013899,2]
[334252840,1722867048742,-21060.2555275,0.00013899,2]
[334252842,1722867048751,-297.29865721,0.00013899,2]
[334252844,1722867048762,-291.57705565,0.00013899,2]
[334252846,1722867048772,-297.29865721,0.00013899,2]
[334252848,1722867048781,-439.81414465,0.00013899,2]
[334252850,1722867048791,-155.0,0.00013899,2]
[334252852,1722867048800,-306.2804844,0.00013899,2]
[334252854,1722867048810,-151.0,0.000139,2]